bitfinex/quotes_BTCUSD_20241229
["timestamp","ask_amount","ask_price","bid_price","bid_amount"]
[1735455417556,0.00560651,95382.0,95381.0,0.06321395]
[1735455417700,1.10060923,95382.0,95381.0,0.06321395]
[1735455417908,1.10060923,95382.0,95381.0,0.06221395]
[1735455418348,1.10060923,95382.0,95381.0,0.06321395]
[1735455418906,1.10060923,95382.0,95381.0,0.06521395]
[1735455419574,1.10060923,95382.0,95381.0,0.06421395]
[1735455419710,1.10060923,95382.0,95381.0,0.06621395]
[1735455422281,1.10060923,95382.0,95381.0,0.004]
[1735455422509,1.10060923,95382.0,95375.0,0.06221395]
[1735455422674,1.088974,95381.0,95375.0,0.06221395]
[1735455423441,0.01163523,95380.0,95375.0,0.06221395]
[1735455423646,0.01163523,95380.0,95375.0,0.06521395]
[1735455423847,1.088974,95379.0,95375.0,0.06521395]
[1735455424244,1.088974,95379.0,95375.0,0.06421395]
[1735455424603,0.01645184,95384.0,95375.0,0.06421395]
[1735455424604,0.01163523,95378.0,95375.0,0.06521395]
[1735455424952,1.088974,95377.0,95375.0,0.06321395]
[1735455425506,0.01163523,95376.0,95375.0,0.001]
[1735455425706,0.01163523,95376.0,95375.0,0.06321395]
[1735455425944,1.088974,95382.0,95375.0,0.06321395]
[1735455426145,1.053484,95381.0,95380.0,0.06221395]
[1735455426260,0.01163523,95381.0,95380.0,0.06221395]
[1735455426690,1.10060923,95381.0,95380.0,0.06221395]
[1735455429185,1.10060923,95381.0,95380.0,0.06321395]
[1735455429387,1.11706122,95381.0,95380.0,0.06321395]
[1735455432283,1.11706122,95381.0,95380.0,0.14631395]
[1735455433436,1.11706122,95381.0,95380.0,0.19581395]
[1735455439202,0.83467322,95381.0,95380.0,0.19581395]
[1735455441067,0.83467322,95381.0,95380.0,0.19481395]
[1735455441264,0.83567322,95381.0,95380.0,0.20281395]
[1735455441680,0.83567322,95381.0,95380.0,0.20181395]
[1735455441887,0.83567322,95381.0,95380.0,0.20581395]
[1735455449170,0.83575872,95381.0,95380.0,0.20581395]
[1735455449824,0.02917272,95381.0,95380.0,0.20581395]
[1735455450017,1.10651149,95381.0,95380.0,0.20581395]
[1735455450245,1.118156,95381.0,95380.0,0.20581395]
[1735455452695,1.10170401,95381.0,95380.0,0.20581395]
[1735455453187,1.11815576,95381.0,95380.0,0.20581395]
[1735455458888,1.11815576,95381.0,95380.0,0.011]
[1735455459098,1.11815576,95381.0,95380.0,0.00069608]
[1735455459715,1.11815576,95381.0,95378.0,0.000171]
[1735455459716,1.11715576,95381.0,95378.0,0.000171]
[1735455459922,1.088974,95380.0,95378.0,0.000171]
[1735455460343,0.01165871,95379.0,95378.0,0.000171]
[1735455460557,0.01165871,95379.0,95367.0,0.0001708]
[1735455460770,1.088974,95378.0,95367.0,0.0001708]
[1735455461597,1.088974,95378.0,95367.0,0.06238475]
[1735455463527,1.088974,95378.0,95370.0,0.06221395]
[1735455463718,0.00558642,95377.0,95370.0,0.06221395]
[1735455463926,1.088974,95376.0,95370.0,0.06221395]
[1735455464377,1.0945582,95376.0,95370.0,0.06221395]
[1735455464574,1.088974,95375.0,95370.0,0.06221395]
[1735455464774,1.09455599,95375.0,95370.0,0.06221395]
[1735455464999,1.088974,95374.0,95370.0,0.06221395]
[1735455465205,1.09455378,95374.0,95370.0,0.06221395]
[1735455465466,1.088974,95373.0,95370.0,0.06221395]
[1735455465923,0.00557535,95372.0,95370.0,0.06221395]
[1735455466298,1.088974,95371.0,95370.0,0.06221395]
[1735455466584,1.088974,95371.0,95370.0,0.05800701]
[1735455466799,1.09454713,95371.0,95370.0,0.05800701]
[1735455467206,1.09454713,95371.0,95370.0,0.05900701]
[1735455467630,1.09454713,95371.0,95370.0,0.05851569]
[1735455467787,1.09454713,95371.0,95370.0,0.06251569]
[1735455468355,1.11100018,95371.0,95370.0,0.06251569]
[1735455469956,1.11702957,95371.0,95370.0,0.06251569]
[1735455471304,1.11702957,95371.0,95370.0,0.06268649]
[1735455471756,1.11711497,95371.0,95370.0,0.06268649]
[1735455473687,1.10066192,95371.0,95370.0,0.06268649]
[1735455476986,1.11711497,95371.0,95370.0,0.06268649]
[1735455483067,1.10066192,95371.0,95370.0,0.05868649]
[1735455483416,1.11711476,95371.0,95370.0,0.06368649]
[1735455489521,0.65982376,95371.0,95370.0,0.19268649]
[1735455489938,0.34669776,95371.0,95370.0,0.19068649]
[1735455490119,0.34669776,95371.0,95370.0,0.18968649]
[1735455490537,0.34669776,95371.0,95370.0,0.19068649]
[1735455490742,0.34669776,95371.0,95370.0,0.18868649]
[1735455490950,0.34669776,95371.0,95370.0,0.18968649]
[1735455491731,0.34669776,95371.0,95370.0,0.19268649]
[1735455493248,0.33024492,95371.0,95370.0,0.19268649]
[1735455493837,0.15108892,95371.0,95370.0,0.27019195]
[1735455494405,0.01168792,95371.0,95370.0,0.40121455]
[1735455494697,0.0165376,95371.0,95370.0,0.40121455]
[1735455496348,0.0165376,95371.0,95370.0,0.39921455]
[1735455496603,0.0165376,95371.0,95370.0,0.36917827]
[1735455496858,0.0175376,95371.0,95370.0,0.38017827]
[1735455497094,0.0165376,95371.0,95370.0,0.37117827]
[1735455497328,0.0175376,95371.0,95370.0,0.37817827]
[1735455497560,0.0175376,95371.0,95370.0,0.38517827]
[1735455503213,0.0010854,95371.0,95370.0,0.38517827]
[1735455504812,0.00207298,95408.0,95397.0,0.05800701]
[1735455504989,1.088974,95407.0,95397.0,0.05800701]
[1735455505367,1.10117913,95407.0,95397.0,0.05800701]
[1735455505568,1.088974,95406.0,95397.0,0.05800701]
[1735455506188,0.01644962,95404.0,95397.0,0.05800701]
[1735455506365,1.088974,95403.0,95397.0,0.05800701]
[1735455506569,0.01644967,95403.0,95397.0,0.05800701]
[1735455506750,1.088974,95402.0,95397.0,0.05800701]
[1735455507612,1.088974,95402.0,95397.0,0.05900701]
[1735455507991,1.088974,95402.0,95397.0,0.06000701]
[1735455508902,0.0060646,95401.0,95397.0,0.06000701]
[1735455509107,1.088974,95400.0,95397.0,0.05900701]
[1735455509634,0.00606018,95399.0,95397.0,0.05900701]
[1735455509782,1.088974,95398.0,95397.0,0.06100701]
[1735455509987,1.09503196,95398.0,95397.0,0.05800701]
[1735455510207,1.09503196,95398.0,95397.0,0.06000701]
[1735455510406,0.48116896,95398.0,95397.0,0.13800701]
[1735455510609,0.48116896,95398.0,95397.0,0.18650701]
[1735455511039,0.48116896,95398.0,95397.0,0.18550701]
[1735455511234,0.48116896,95398.0,95397.0,0.18950701]
[1735455512909,0.48116896,95398.0,95397.0,0.006]
[1735455513478,0.48116896,95398.0,95397.0,0.06400701]
[1735455513854,0.48116896,95398.0,95397.0,0.06200701]
[1735455514057,0.48116896,95398.0,95397.0,0.05800701]
[1735455514257,0.48116896,95398.0,95397.0,0.05900701]
[1735455514461,0.48316896,95398.0,95397.0,0.05900701]
[1735455515006,0.48939192,95398.0,95397.0,0.05900701]
[1735455515582,0.48739192,95398.0,95397.0,0.05900701]
[1735455515842,0.48939192,95398.0,95397.0,0.05900701]
[1735455516170,0.48739192,95398.0,95397.0,0.05900701]
[1735455516342,0.48739192,95398.0,95397.0,0.05800701]
[1735455516550,0.48839192,95398.0,95397.0,0.06000701]
[1735455516736,1.10225492,95398.0,95397.0,0.06000701]
[1735455517165,1.10125492,95398.0,95397.0,0.06000701]
[1735455517545,1.10125492,95398.0,95397.0,0.06017781]
[1735455517915,1.10125492,95398.0,95397.0,0.0021708]
[1735455518224,1.10125492,95398.0,95397.0,0.0041708]
[1735455518582,1.10125492,95398.0,95397.0,0.06217781]
[1735455518723,1.10125492,95398.0,95397.0,0.0041708]
[1735455519126,1.10125492,95398.0,95397.0,0.06217781]
[1735455523558,1.10125492,95398.0,95397.0,0.06017781]
[1735455524838,1.10125492,95398.0,95397.0,0.13757781]
[1735455527295,1.11770466,95398.0,95397.0,0.13757781]
[1735455533156,0.01228092,95398.0,95397.0,0.13757781]
[1735455533563,1.088974,95407.0,95397.0,0.13757781]
[1735455533898,0.01227833,95406.0,95397.0,0.13757781]
[1735455534196,1.088974,95405.0,95397.0,0.13757781]
[1735455534665,1.088974,95405.0,95397.0,0.13557781]
[1735455535360,1.088974,95405.0,95397.0,0.13357781]
[1735455535487,0.01644956,95404.0,95397.0,0.13357781]
[1735455535854,1.088974,95403.0,95397.0,0.13357781]
[1735455537204,0.00607348,95402.0,95397.0,0.13357781]
[1735455537476,1.088974,95401.0,95397.0,0.13357781]
[1735455537636,1.09504527,95401.0,95397.0,0.13357781]
[1735455537840,0.00607127,95401.0,95397.0,0.13457781]
[1735455538068,1.088974,95400.0,95397.0,0.13457781]
[1735455538237,1.10125197,95400.0,95397.0,0.13557781]
[1735455538442,1.088974,95399.0,95397.0,0.13557781]
[1735455538679,1.088974,95399.0,95397.0,0.13457781]
[1735455538839,1.088974,95399.0,95397.0,0.13557781]
[1735455539050,1.088974,95399.0,95397.0,0.13357781]
[1735455539495,1.088974,95399.0,95397.0,0.13657781]
[1735455539672,1.088974,95399.0,95397.0,0.13457781]
[1735455539871,1.088974,95399.0,95397.0,0.13357781]
[1735455540190,1.088974,95399.0,95397.0,0.13657781]
[1735455540723,0.00606463,95398.0,95397.0,0.13657781]
[1735455540895,1.09503863,95398.0,95397.0,0.13657781]
[1735455541133,1.088974,95398.0,95397.0,0.13657781]
[1735455541448,0.00621323,95398.0,95397.0,0.13657781]
[1735455541764,1.088974,95398.0,95397.0,0.13657781]
[1735455541966,0.00621323,95398.0,95397.0,0.17977781]
[1735455542159,0.00621323,95398.0,95397.0,0.18177781]
[1735455542486,0.00621498,95398.0,95397.0,0.18377781]
[1735455542669,1.088974,95400.0,95397.0,0.18377781]
[1735455542816,0.00621498,95398.0,95397.0,0.18377781]
[1735455543018,1.088974,95398.0,95397.0,0.18377781]
[1735455543221,0.00621498,95398.0,95397.0,0.18377781]
[1735455543592,1.088974,95398.0,95397.0,0.18177781]
[1735455543799,1.088974,95407.0,95397.0,0.18177781]
[1735455544002,0.00621498,95398.0,95397.0,0.18277781]
[1735455544133,1.09518898,95398.0,95397.0,0.18277781]
[1735455544330,1.088974,95398.0,95397.0,0.18277781]
[1735455544537,0.01227961,95398.0,95397.0,0.18277781]
[1735455545111,1.09503863,95398.0,95397.0,0.17877781]
[1735455545308,1.088974,95398.0,95397.0,0.17877781]
[1735455545461,1.088974,95407.0,95397.0,0.18277781]
[1735455545665,1.10125289,95398.0,95397.0,0.18077781]
[1735455546011,1.088974,95398.0,95397.0,0.18377781]
[1735455546244,0.02872906,95398.0,95397.0,0.18377781]
[1735455546456,0.02872906,95398.0,95397.0,0.17877781]
[1735455546586,0.01644945,95398.0,95397.0,0.17877781]
[1735455547192,1.11770306,95398.0,95397.0,0.17877781]
[1735455548223,1.11770306,95398.0,95397.0,0.18177781]
[1735455548396,1.11770306,95398.0,95397.0,0.1237708]
[1735455548633,1.11770306,95398.0,95397.0,0.13657781]
[1735455548915,1.11770306,95398.0,95397.0,0.06317781]
[1735455550070,1.11770306,95398.0,95397.0,0.0051708]
[1735455550244,1.11770306,95398.0,95397.0,0.06317781]
[1735455550822,1.11770306,95398.0,95397.0,0.0051708]
[1735455552411,1.11770306,95398.0,95397.0,0.06317781]
[1735455552819,1.11770306,95398.0,95397.0,0.0051708]
[1735455553158,1.10125361,95398.0,95397.0,0.0051708]
[1735455553524,1.10125361,95398.0,95397.0,0.06317781]
[1735455553736,1.10125361,95398.0,95397.0,0.0051708]
[1735455555153,1.10125361,95398.0,95397.0,0.0001708]
[1735455555354,1.10125361,95398.0,95397.0,0.0021708]
[1735455555972,1.10125361,95398.0,95397.0,0.0031708]
[1735455556196,1.11770327,95398.0,95397.0,0.0031708]
[1735455556577,1.11770327,95398.0,95397.0,0.0021708]
[1735455557937,1.11770327,95398.0,95397.0,0.0031708]
[1735455563079,1.10125361,95398.0,95397.0,0.0031708]
[1735455566213,1.11770334,95398.0,95397.0,0.0031708]
[1735455573185,1.10125361,95398.0,95397.0,0.0031708]
[1735455576115,1.11770334,95398.0,95397.0,0.0031708]
[1735455576337,1.11770334,95398.0,95397.0,0.0842708]
[1735455576711,1.11770334,95398.0,95397.0,0.1334708]
[1735455579165,0.02872934,95398.0,95397.0,0.1334708]
[1735455579399,1.11770334,95398.0,95397.0,0.1334708]
[1735455579551,1.10542373,95398.0,95397.0,0.1334708]
[1735455579732,1.11772269,95398.0,95397.0,0.1334708]
[1735455583087,1.10127296,95398.0,95397.0,0.1334708]
[1735455586117,1.11772239,95398.0,95397.0,0.1334708]
[1735455593120,1.10127296,95398.0,95397.0,0.1334708]
[1735455596453,1.11772247,95398.0,95397.0,0.1334708]
[1735455601517,1.10127296,95398.0,95397.0,0.1334708]
[1735455603978,0.01229896,95398.0,95397.0,0.1334708]
[1735455604980,1.10127296,95398.0,95397.0,0.1334708]
[1735455607214,1.10127296,95398.0,95397.0,0.0031708]
[1735455610034,1.1177226,95398.0,95397.0,0.0031708]
[1735455613074,1.10127296,95398.0,95397.0,0.0031708]
[1735455616087,1.1177226,95398.0,95397.0,0.0031708]
[1735455618266,0.84610652,95398.0,95397.0,0.0031708]
[1735455623339,0.82965688,95398.0,95397.0,0.0031708]
[1735455626101,0.82761714,95398.0,95397.0,0.0031708]
[1735455627874,0.84406678,95398.0,95397.0,0.0031708]
[1735455629188,0.84406678,95398.0,95391.0,0.07883763]
[1735455629420,0.81735,95397.0,95391.0,0.07883763]
[1735455629622,0.82761738,95396.0,95391.0,0.07883763]
[1735455629846,0.81735,95395.0,95391.0,0.07883763]
[1735455630115,0.81735,95394.0,95391.0,0.07883763]
[1735455630230,0.81735,95393.0,95391.0,0.07883763]
[1735455630438,0.81735,95392.0,95391.0,0.07983763]
[1735455630839,0.81735,95392.0,95391.0,0.07883763]
[1735455631039,0.81735,95392.0,95391.0,0.08083763]
[1735455631236,0.81735,95392.0,95391.0,0.07983763]
[1735455631636,0.81735,95392.0,95391.0,0.08383763]
[1735455631849,0.81735,95392.0,95391.0,0.08283763]
[1735455632062,0.81735,95392.0,95391.0,0.08483763]
[1735455632953,0.81735,95392.0,95391.0,0.08500843]
[1735455633298,0.82191957,95392.0,95391.0,0.08201364]
[1735455635250,0.82191957,95392.0,95391.0,0.08001364]
[1735455635608,0.82191957,95392.0,95391.0,0.08201364]
[1735455636161,0.83836934,95392.0,95391.0,0.08001364]
[1735455636361,0.83836934,95392.0,95391.0,0.08201364]
[1735455638447,0.02101934,95392.0,95391.0,0.08201364]
[1735455638618,0.83836934,95392.0,95391.0,0.08201364]
[1735455641125,0.84406949,95392.0,95391.0,0.08201364]
[1735455643173,0.82761972,95392.0,95391.0,0.08201364]
[1735455646328,0.84406949,95392.0,95391.0,0.08201364]
[1735455653046,0.82761972,95392.0,95391.0,0.08201364]
[1735455656336,0.8440696,95392.0,95391.0,0.08201364]
[1735455656696,0.8440696,95392.0,95391.0,0.07890444]
[1735455657606,0.844155,95392.0,95391.0,0.07890444]
[1735455663122,0.82770512,95392.0,95391.0,0.07890444]
[1735455665702,0.81140512,95392.0,95391.0,0.18511145]
[1735455665943,0.79138512,95392.0,95391.0,0.18511145]
[1735455666362,0.80783474,95392.0,95391.0,0.18511145]
[1735455673150,0.79138512,95392.0,95391.0,0.18511145]
[1735455675426,0.01035512,95392.0,95391.0,0.18511145]
[1735455676274,0.84415485,95392.0,95391.0,0.18511145]
[1735455676912,0.84415485,95392.0,95391.0,0.26261691]
[1735455678338,0.84415485,95392.0,95391.0,0.2046099]
[1735455678548,0.84415485,95392.0,95391.0,0.08367626]
[1735455682519,0.84415485,95392.0,95391.0,0.07767626]
[1735455682738,0.84415485,95392.0,95391.0,0.08067626]
[1735455682936,0.84415485,95392.0,95391.0,0.08267626]
[1735455683141,0.82770512,95392.0,95391.0,0.07967626]
[1735455683352,0.82770512,95392.0,95391.0,0.08067626]
[1735455683770,0.82770512,95392.0,95391.0,0.08267626]
[1735455685025,0.82770512,95392.0,95391.0,0.0051708]
[1735455685232,0.82770512,95392.0,95391.0,0.08267626]
[1735455686271,0.84415519,95392.0,95391.0,0.08267626]
[1735455686494,0.88165519,95392.0,95391.0,0.0051708]
[1735455686719,1.02443502,95392.0,95391.0,0.0051708]
[1735455686921,1.02571644,95392.0,95391.0,0.0051708]
[1735455687139,1.02803694,95392.0,95391.0,0.0051708]
[1735455687550,1.03030616,95392.0,95391.0,0.0051708]
[1735455688380,0.21295616,95392.0,95391.0,0.0031708]
[1735455688589,1.03530616,95392.0,95391.0,0.0031708]
[1735455688802,1.02785609,95392.0,95391.0,0.0041708]
[1735455689013,1.03931019,95392.0,95391.0,0.0011708]
[1735455689245,1.03931019,95392.0,95370.0,0.00067948]
[1735455689246,0.04199299,95383.0,95370.0,0.00067948]
[1735455689467,0.06448753,95371.0,95370.0,0.00067948]
[1735455689703,0.16203164,95371.0,95370.0,0.00067948]
[1735455690162,0.16203164,95371.0,95331.0,0.05452861]
[1735455690163,0.02249454,95357.0,95331.0,0.05452861]
[1735455690373,0.8821732,95356.0,95331.0,0.05452861]
[1735455690583,0.81735,95355.0,95331.0,5.082e-05]
[1735455690789,0.05802661,95354.0,95331.0,5.082e-05]
[1735455690996,0.81735,95353.0,95331.0,5.082e-05]
[1735455691449,0.18884465,95341.0,95331.0,5.082e-05]
[1735455691663,0.81735,95340.0,95331.0,5.082e-05]
[1735455691864,0.01645997,95339.0,95331.0,5.082e-05]
[1735455692085,0.81735,95338.0,95331.0,5.082e-05]
[1735455692297,0.86567013,95338.0,95331.0,5.082e-05]
[1735455692525,0.84326008,95337.0,95331.0,0.00105082]
[1735455692733,0.86570459,95336.0,95331.0,0.00105082]
[1735455692944,0.84326008,95335.0,95331.0,0.00105082]
[1735455693146,0.81735,95334.0,95331.0,5.082e-05]
[1735455693375,0.02591008,95333.0,95331.0,0.00105082]
[1735455693584,0.84946653,95332.0,95331.0,0.00105082]
[1735455693797,0.93407026,95332.0,95331.0,0.00105082]
[1735455695168,0.93407026,95332.0,95331.0,5.082e-05]
[1735455695400,0.93407026,95332.0,95331.0,0.00105082]
[1735455696001,0.93507026,95332.0,95331.0,5.082e-05]
[1735455696224,0.93507026,95332.0,95331.0,0.00205082]
[1735455696441,0.95053086,95332.0,95331.0,0.00205082]
[1735455696846,0.95053086,95332.0,95331.0,5.082e-05]
[1735455697050,0.95053086,95332.0,95331.0,0.00205082]
[1735455698841,0.93407026,95332.0,95331.0,5.082e-05]
[1735455699265,0.95053088,95332.0,95331.0,0.00205082]
[1735455701246,0.95360831,95332.0,95331.0,0.00205082]
[1735455702723,0.92769823,95332.0,95331.0,5.082e-05]
[1735455702934,0.92769823,95332.0,95331.0,0.00022182]
[1735455703296,0.91123761,95332.0,95331.0,0.00222182]
[1735455703972,0.91223761,95332.0,95331.0,0.00222182]
[1735455704338,0.91223761,95332.0,95326.0,0.0536628]
[1735455704546,0.83358806,95331.0,95327.0,0.07750546]
[1735455704798,0.83358806,95331.0,95326.0,0.1312191]
[1735455704997,0.8203829,95330.0,95326.0,0.1312191]
[1735455705241,0.81735,95329.0,95326.0,0.1312191]
[1735455705457,0.81735,95329.0,95326.0,0.1332191]
[1735455705862,0.81735,95330.0,95327.0,0.15620546]
[1735455706368,0.01646025,95329.0,95327.0,0.0787]
[1735455706577,0.81735,95328.0,95327.0,0.15620546]
[1735455707339,0.85984005,95328.0,95327.0,0.15620546]
[1735455708070,0.86084005,95328.0,95327.0,0.15620546]
[1735455708455,0.83455582,95328.0,95327.0,0.15820546]
[1735455708867,0.83455582,95328.0,95327.0,0.15620546]
[1735455709288,0.83455582,95328.0,95327.0,0.15820546]
[1735455710200,0.01720582,95328.0,95327.0,0.15820546]
[1735455710419,0.83455582,95328.0,95327.0,0.15820546]
[1735455710627,0.81835,95328.0,95327.0,0.21186826]
[1735455710849,0.64463003,95328.0,95327.0,0.25846826]
[1735455713275,0.66109021,95328.0,95327.0,0.25846826]
[1735455713497,0.64463003,95328.0,95327.0,0.25846826]
[1735455716444,0.66109021,95328.0,95327.0,0.25846826]
[1735455720493,0.66109021,95328.0,95327.0,0.1809628]
[1735455720701,0.66109021,95328.0,95327.0,0.25846826]
[1735455721408,0.66109021,95328.0,95327.0,0.25025441]
[1735455723117,0.66233647,95328.0,95327.0,0.25025441]
[1735455723328,0.64587629,95328.0,95327.0,0.25025441]
[1735455725598,0.83880929,95328.0,95327.0,0.25025441]
[1735455726239,0.85526924,95328.0,95327.0,0.25025441]
[1735455728071,0.85526924,95328.0,95327.0,0.25033991]
[1735455729023,0.85544024,95328.0,95327.0,0.25033991]
[1735455730366,0.85544024,95328.0,95327.0,0.11917165]
[1735455730568,0.85544024,95328.0,95327.0,0.19667711]
[1735455730765,0.85544024,95328.0,95327.0,0.11917165]
[1735455731826,0.85544024,95328.0,95327.0,0.0020855]
[1735455732621,0.59518795,95328.0,95327.0,0.0020855]
[1735455732824,0.61222088,95328.0,95327.0,0.0020855]
[1735455733258,0.59576093,95328.0,95327.0,0.0020855]
[1735455734311,0.59576093,95328.0,95327.0,8.55e-05]
[1735455734518,0.62165842,95328.0,95327.0,0.0020855]
[1735455734932,0.62165842,95328.0,95327.0,8.55e-05]
[1735455735339,0.62165842,95328.0,95327.0,0.0020855]
[1735455735771,0.62165842,95328.0,95320.0,0.09226461]
[1735455736003,0.60445449,95327.0,95320.0,0.09233383]
[1735455736197,0.578557,95326.0,95320.0,0.09233383]
[1735455736411,0.578557,95325.0,95320.0,0.09233383]
[1735455736619,0.578557,95324.0,95320.0,0.09233383]
[1735455736822,0.60445449,95323.0,95320.0,0.09233383]
[1735455737024,0.578557,95322.0,95320.0,0.09233383]
[1735455737231,0.578557,95321.0,95320.0,0.09233383]
[1735455737438,0.60445449,95321.0,95320.0,0.09233383]
[1735455737646,0.60933306,95321.0,95320.0,0.09233383]
[1735455737846,0.62148742,95321.0,95320.0,0.09233383]
[1735455738291,0.62132873,95321.0,95320.0,0.09233383]
[1735455738500,0.62132873,95321.0,95320.0,0.09333383]
[1735455738709,0.59558993,95321.0,95320.0,0.09333383]
[1735455742822,0.59558993,95321.0,95320.0,0.17593383]
[1735455743633,0.38644993,95321.0,95320.0,0.35240209]
[1735455743843,0.15486993,95321.0,95320.0,0.35240209]
[1735455744826,0.15486993,95321.0,95320.0,0.35140209]
[1735455745031,0.137837,95321.0,95320.0,0.35140209]
[1735455745242,0.578557,95327.0,95322.0,0.07750546]
[1735455745395,0.578557,95327.0,95323.0,0.0826]
[1735455745807,0.59501816,95327.0,95323.0,0.0826]
[1735455746050,0.01646116,95327.0,95326.0,0.1815628]
[1735455746211,0.01646116,95327.0,95326.0,0.1805628]
[1735455746409,0.59501816,95327.0,95326.0,0.1805628]
[1735455747338,0.59601816,95327.0,95326.0,0.1805628]
[1735455747964,0.59701816,95327.0,95326.0,0.1805628]
[1735455748162,0.59701816,95327.0,95326.0,0.1845628]
[1735455748596,0.60917252,95327.0,95326.0,0.1805628]
[1735455748797,0.60917252,95327.0,95326.0,0.1845628]
[1735455749204,0.56410752,95327.0,95326.0,0.1845628]
[1735455753278,0.54764636,95327.0,95326.0,0.1845628]
[1735455754027,0.54764636,95327.0,95326.0,0.1810686]
[1735455756272,0.5641072,95327.0,95326.0,0.1810686]
[1735455757510,0.5641072,95327.0,95326.0,0.1770686]
[1735455757713,0.5621072,95327.0,95326.0,0.1770686]
[1735455757915,0.5621072,95327.0,95326.0,0.1810686]
[1735455758393,0.5621072,95327.0,95326.0,0.1770686]
[1735455758600,0.5631072,95327.0,95326.0,0.1810686]
[1735455759020,0.5631072,95327.0,95326.0,0.1770686]
[1735455759960,0.5641072,95327.0,95326.0,0.1790686]
[1735455760155,0.0306152,95327.0,95326.0,0.1790686]
[1735455760363,0.59701784,95327.0,95326.0,0.1810686]
[1735455760819,0.61447075,95327.0,95326.0,0.25857406]
[1735455763186,0.59800991,95327.0,95326.0,0.25865946]
[1735455763430,0.59818071,95327.0,95326.0,0.25865946]
[1735455766438,0.61464132,95327.0,95326.0,0.25865946]
[1735455770405,0.56516732,95327.0,95326.0,0.27321465]
[1735455770609,0.56516732,95327.0,95326.0,0.25865946]
[1735455773254,0.54870671,95327.0,95326.0,0.25865946]
[1735455775221,0.13085771,95327.0,95326.0,0.25865946]
[1735455775396,0.18871271,95327.0,95326.0,0.25865946]
[1735455776519,0.20517323,95327.0,95326.0,0.25865946]
[1735455778558,0.03608423,95327.0,95326.0,0.25865946]
[1735455778759,0.33461723,95327.0,95326.0,0.25865946]
[1735455778964,0.31716432,95327.0,95326.0,0.25865946]
[1735455779172,0.23866402,95327.0,95326.0,0.25865946]
[1735455779551,0.03612202,95327.0,95326.0,0.25865946]
[1735455779937,0.01863132,95327.0,95326.0,0.25865946]
[1735455782426,0.0021708,95327.0,95326.0,0.25865946]
[1735455785576,0.01862998,95327.0,95326.0,0.25865946]
[1735455793152,0.0021708,95327.0,95326.0,0.25865946]
[1735455796272,0.01862988,95327.0,95326.0,0.25865946]
[1735455800031,0.01862988,95327.0,95326.0,0.25665946]
[1735455800439,0.01662988,95327.0,95326.0,0.25465946]
[1735455800650,0.01762988,95327.0,95326.0,0.25665946]
[1735455801704,0.01762988,95327.0,95326.0,0.47652635]
[1735455802702,0.01762988,95327.0,95326.0,0.46064578]
[1735455803111,0.0011708,95327.0,95326.0,0.46064578]
[1735455803516,0.0011708,95327.0,95326.0,0.46464578]
[1735455805268,0.0011708,95327.0,95326.0,0.46064578]
[1735455805538,0.0011708,95327.0,95326.0,0.46564578]
[1735455807185,0.0011708,95327.0,95326.0,0.36564578]
[1735455807392,0.0011708,95327.0,95326.0,0.26165946]
[1735455807827,0.01762897,95327.0,95326.0,0.26165946]
[1735455809834,0.01662897,95327.0,95326.0,0.25965946]
[1735455810041,0.01662897,95327.0,95326.0,0.28986734]
[1735455810332,0.01762897,95327.0,95326.0,0.26665946]
[1735455810738,0.01662897,95327.0,95326.0,0.25965946]
[1735455811133,0.01762897,95327.0,95326.0,0.26665946]
[1735455811561,0.01762897,95327.0,95326.0,0.26165946]
[1735455811905,0.01762897,95327.0,95326.0,0.26665946]
[1735455812429,0.01762897,95327.0,95326.0,0.30256734]
[1735455813248,0.0011708,95327.0,95326.0,0.30256734]
[1735455813788,0.0011708,95327.0,95326.0,0.26665946]
[1735455816140,0.01762912,95327.0,95326.0,0.26665946]
[1735455817653,0.01762912,95327.0,95326.0,0.47064578]
[1735455818190,0.01762912,95327.0,95326.0,0.46564578]
[1735455818534,0.01762912,95327.0,95326.0,0.47064578]
[1735455819341,0.01662912,95327.0,95326.0,0.46364578]
[1735455819533,0.01762912,95327.0,95326.0,0.47264578]
[1735455820700,0.01762912,95327.0,95326.0,0.52915229]
[1735455821184,0.01762912,95327.0,95326.0,0.47264578]
[1735455821844,0.01762912,95327.0,95326.0,0.57264578]
[1735455822447,0.01762912,95327.0,95326.0,0.5824797]
[1735455822663,0.01762912,95327.0,95326.0,0.5774797]
[1735455822862,0.01662912,95327.0,95326.0,0.5774797]
[1735455823080,0.01662912,95327.0,95326.0,0.68146602]
[1735455823364,0.01662912,95327.0,95326.0,1.23746596]
[1735455823365,0.01762912,95327.0,95326.0,1.23746596]
[1735455823523,0.01762912,95327.0,95326.0,1.22846596]
[1735455823724,8.55e-05,95357.0,95327.0,0.07750546]
[1735455823927,8.55e-05,95357.0,95356.0,0.24957406]
[1735455824102,8.55e-05,95357.0,95356.0,0.35356038]
[1735455824938,0.01653982,95357.0,95356.0,0.35356038]
[1735455826132,0.01653982,95357.0,95356.0,0.36156038]
[1735455826354,0.01659062,95357.0,95356.0,0.36556038]
[1735455826560,0.01659062,95357.0,95356.0,0.41211642]
[1735455827973,0.01659062,95357.0,95356.0,0.51211642]
[1735455828171,0.01659062,95357.0,95356.0,0.50811642]
[1735455828391,0.01659062,95357.0,95356.0,0.50711642]
[1735455828651,0.01659062,95357.0,95356.0,0.51611642]
[1735455828799,0.01659062,95357.0,95356.0,0.50711642]
[1735455829006,0.01659062,95357.0,95356.0,0.50011642]
[1735455829257,0.01659062,95357.0,95356.0,0.51511642]
[1735455829975,0.01659062,95357.0,95356.0,0.51811642]
[1735455830196,0.01659062,95357.0,95356.0,0.50711642]
[1735455830370,0.01659062,95357.0,95356.0,0.51611642]
[1735455831336,0.01659062,95357.0,95356.0,0.50911642]
[1735455831496,0.01659062,95357.0,95356.0,0.50011642]
[1735455831701,0.01659062,95357.0,95356.0,0.50811642]
[1735455831859,0.01659062,95357.0,95356.0,0.51711642]
[1735455832774,0.0001363,95357.0,95356.0,0.51711642]
[1735455833383,0.0001363,95357.0,95356.0,1.05626022]
[1735455834346,0.0001363,95357.0,95356.0,1.15626022]
[1735455835989,0.01658807,95357.0,95356.0,1.15626022]
[1735455839411,0.01658807,95357.0,95356.0,1.10970418]
[1735455841085,0.01658807,95357.0,95356.0,1.00970418]
[1735455842305,0.01658807,95357.0,95356.0,0.47056038]
[1735455843245,0.0001363,95357.0,95356.0,0.47056038]
[1735455844092,0.0001363,95357.0,95356.0,0.39305492]
[1735455844476,0.0001363,95357.0,95356.0,0.56378025]
[1735455846233,0.01658791,95357.0,95356.0,0.56378025]
[1735455853199,0.0001363,95357.0,95356.0,0.56378025]
[1735455854518,0.18912831,95405.0,95356.0,0.56378025]
[1735455854519,0.04993458,95405.0,95391.0,0.0491686]
[1735455854736,0.00050871,95397.0,95391.0,0.0491686]
[1735455854885,0.578557,95396.0,95391.0,0.0491686]
[1735455856347,0.01645041,95395.0,95391.0,0.0491686]
[1735455856698,0.578557,95394.0,95391.0,0.0491686]
[1735455857932,0.578557,95394.0,95391.0,0.0511686]
[1735455858343,0.01229659,95393.0,95391.0,0.0511686]
[1735455858675,0.578557,95392.0,95391.0,0.0511686]